bitfinex/quotes_SOLUSD_20250212
["timestamp","ask_amount","ask_price","bid_price","bid_amount"]
[1739370025608,20.0,191.45,191.36,0.0001]
[1739370026628,0.12549,191.48,191.38,26.21033344]
[1739370026803,0.063,191.45,191.36,1.0001]
[1739370027009,0.063,191.45,191.41,26.21033344]
[1739370027220,0.063,191.45,191.42,26.21033344]
[1739370027537,0.063,191.45,191.44,26.21033344]
[1739370028227,0.063,191.45,191.41,11.8045]
[1739370028228,0.063,191.45,191.43,26.21033344]
[1739370028915,0.063,191.45,191.41,6.5804]
[1739370029136,0.063,191.45,191.37,31.43563344]
[1739370029340,0.063,191.45,191.36,32.68643344]
[1739370029808,20.063,191.45,191.36,6.4761]
[1739370030220,0.12549,191.44,191.36,6.4761]
[1739370030830,0.12549,191.44,191.36,0.0001]
[1739370031917,13.53733853,191.44,191.36,0.0001]
[1739370032321,20.0,191.41,191.36,0.0001]
[1739370032544,20.12549,191.37,191.36,0.0001]
[1739370032722,33.53733853,191.37,191.36,0.0001]
[1739370035452,40.01031853,191.37,191.36,0.0001]
[1739370035631,20.12549,191.34,191.33,0.03]
[1739370036027,33.78831853,191.34,191.27,0.03]
[1739370036248,0.12549,191.29,191.27,0.03]
[1739370036536,13.53733853,191.29,191.27,0.03]
[1739370038533,0.12549,191.29,191.27,0.03]
[1739370038852,13.53733853,191.27,191.17,0.03]
[1739370039227,20.0,191.24,191.17,0.03]
[1739370039426,0.12549,191.19,191.17,0.03]
[1739370039831,13.53733853,191.19,191.17,0.03]
[1739370041337,0.12549,191.18,191.17,0.03]
[1739370042751,20.12549,191.17,191.16,0.03]
[1739370043258,0.12549,191.17,191.16,0.03]
[1739370043754,33.53733853,191.17,191.16,0.03]
[1739370044075,20.12549,191.17,191.16,0.03]
[1739370044236,20.0,191.21,191.16,0.03]
[1739370044441,6.6116,191.27,191.16,0.03]
[1739370044950,20.0,191.23,191.16,0.03]
[1739370045132,13.41184853,191.26,191.16,0.03]
[1739370045335,13.41184853,191.26,191.16,26.24033344]
[1739370045554,0.12549,191.25,191.16,0.03]
[1739370046051,6.1571,191.33,191.18,26.21033344]
[1739370046253,6.1571,191.33,191.21,26.21033344]
[1739370046451,5.02702877,191.37,191.23,26.21033344]
[1739370046756,5.02702877,191.37,191.23,6.521]
[1739370046952,13.41184853,191.36,191.23,32.73133344]
[1739370047154,0.25098,191.33,191.2,26.21033344]
[1739370047355,0.12549,191.32,191.18,32.73133344]
[1739370047562,13.66282853,191.31,191.18,6.521]
[1739370047855,0.12549,191.27,191.18,6.521]
[1739370048057,13.53733853,191.27,191.18,6.521]
[1739370048857,0.12549,191.27,191.18,6.521]
[1739370049052,20.0,191.28,191.18,6.521]
[1739370049053,20.0,191.3,191.18,6.521]
[1739370049235,20.0,191.3,191.16,0.03]
[1739370049236,20.12549,191.29,191.16,0.03]
[1739370049445,0.12549,191.27,191.16,0.03]
[1739370049975,13.41184853,191.28,191.16,0.03]
[1739370049976,0.12549,191.24,191.16,0.03]
[1739370050268,13.53733853,191.24,191.16,0.03]
[1739370050440,20.0,191.21,191.18,0.03]
[1739370050640,0.12549,191.2,191.18,0.03]
[1739370050838,13.53733853,191.2,191.18,0.03]
[1739370051361,6.6077,191.27,191.16,0.03]
[1739370051657,20.0,191.24,191.16,0.03]
[1739370051840,0.12549,191.23,191.16,0.03]
[1739370052043,20.0,191.24,191.16,42.7913317]
[1739370052369,0.12549,191.28,191.18,42.7613317]
[1739370052870,0.11695168,191.29,191.16,42.7913317]
[1739370053076,0.11695168,191.29,191.17,42.7613317]
[1739370053443,0.12549,191.27,191.16,42.7913317]
[1739370053676,13.53733853,191.27,191.16,0.03]
[1739370053974,0.12549,191.23,191.16,0.03]
[1739370054342,13.53733853,191.23,191.16,0.03]
[1739370054537,0.12549,191.23,191.16,0.03]
[1739370054744,13.53733853,191.23,191.16,0.03]
[1739370055647,20.0,191.2,191.16,0.03]
[1739370055838,0.12549,191.19,191.16,0.03]
[1739370056360,13.53733853,191.19,191.16,0.03]
[1739370057250,20.0,191.24,191.16,0.03]
[1739370057774,13.53733853,191.23,191.16,0.03]
[1739370058452,0.12549,191.19,191.16,0.03]
[1739370059092,13.53733853,191.19,191.16,0.03]
[1739370059270,0.12549,191.19,191.16,0.03]
[1739370059449,20.0,191.23,191.16,0.03]
[1739370059649,0.12549,191.18,191.16,0.03]
[1739370059975,13.41184853,191.22,191.16,0.03]
[1739370060143,0.12549,191.21,191.16,0.03]
[1739370060764,5.02702877,191.27,191.16,0.03]
[1739370061066,13.53733853,191.26,191.16,42.7913317]
[1739370061270,20.0,191.23,191.16,0.03]
[1739370061463,13.53733853,191.22,191.16,0.03]
[1739370061768,5.02702877,191.27,191.16,0.03]
[1739370062163,13.53733853,191.23,191.16,0.03]
[1739370063448,5.09002877,191.27,191.17,42.7613317]
[1739370063647,0.063,191.27,191.22,42.7613317]
[1739370063853,0.063,191.27,191.24,42.7613317]
[1739370064073,0.063,191.27,191.25,42.7613317]
[1739370064279,0.063,191.27,191.26,42.7613317]
[1739370064774,0.063,191.27,191.26,50.8675317]
[1739370065180,0.063,191.39,191.33,42.7613317]
[1739370065355,0.063,191.39,191.26,8.23169]
[1739370065356,0.063,191.39,191.34,42.7613317]
[1739370065553,0.063,191.39,191.32,42.7613317]
[1739370065756,0.063,191.39,191.31,42.7613317]
[1739370065954,0.063,191.39,191.3,42.7613317]
[1739370066256,0.063,191.39,191.29,42.7613317]
[1739370066257,0.18849,191.39,191.29,42.7613317]
[1739370066651,0.063,191.39,191.31,42.7613317]
[1739370067089,0.063,191.39,191.28,5.2276]
[1739370067378,0.063,191.39,191.36,42.7613317]
[1739370067673,0.063,191.39,191.38,42.7613317]
[1739370068057,0.063,191.43,191.38,50.5824317]
[1739370068381,0.063,191.43,191.42,42.7613317]
[1739370068564,0.063,191.43,191.42,43.7613317]
[1739370068876,0.063,191.45,191.44,22.25098]
[1739370069175,0.063,191.45,191.44,65.0123117]
[1739370069570,0.063,191.45,191.44,70.2358117]
[1739370070274,0.063,191.51,191.45,1.25098]
[1739370070449,0.063,191.51,191.46,42.7613317]
[1739370070952,0.063,191.51,191.46,46.10871995]
[1739370071147,0.063,191.51,191.49,22.0]
[1739370071353,0.063,191.51,191.5,106.5226634]
[1739370071667,0.063,191.51,191.5,62.7613317]
[1739370072864,0.063,191.51,191.49,42.7613317]
[1739370073172,0.063,191.51,191.48,42.7613317]
[1739370073756,0.063,191.51,191.5,42.7613317]
[1739370075058,0.063,191.51,191.5,85.5226634]
[1739370075259,0.063,191.51,191.5,42.7613317]
[1739370077975,0.063,191.51,191.47,42.7613317]
[1739370078176,0.063,191.51,191.44,5.2233]
[1739370078177,0.063,191.51,191.46,42.7613317]
[1739370078380,0.063,191.51,191.45,42.7613317]
[1739370078598,0.063,191.51,191.48,42.7613317]
[1739370079300,0.063,191.51,191.5,42.7613317]
[1739370079879,0.063,191.51,191.47,42.7613317]
[1739370080079,0.063,191.51,191.48,42.7613317]
[1739370080479,0.063,191.51,191.5,42.7613317]
[1739370081471,0.063,191.51,191.47,42.7613317]
[1739370081672,0.063,191.51,191.45,42.7613317]
[1739370081881,0.063,191.51,191.43,42.7613317]
[1739370082900,0.063,191.51,191.44,42.7613317]
[1739370083494,0.063,191.51,191.5,42.7613317]
[1739370083792,0.063,191.51,191.47,42.7613317]
[1739370084002,0.063,191.51,191.49,42.7613317]
[1739370084288,0.063,191.51,191.5,42.7613317]
[1739370084494,0.063,191.51,191.5,85.7736434]
[1739370084668,0.063,191.51,191.5,97.2475434]
[1739370085174,0.063,191.51,191.5,96.9965634]
[1739370085491,0.063,191.51,191.5,98.8030434]
[1739370085871,0.063,191.51,191.5,99.89906404]
[1739370086066,0.063,191.51,191.5,115.31091257]
[1739370086288,0.063,191.51,191.5,98.8030434]
[1739370086484,0.063,191.51,191.5,56.0417117]
[1739370086686,0.063,191.51,191.5,114.31096355]
[1739370086873,0.063,191.51,191.5,113.21489193]
[1739370087075,0.063,191.51,191.5,98.5520634]
[1739370087274,0.063,191.51,191.5,55.7907317]
[1739370087701,0.063,191.51,191.5,42.7613317]
[1739370087981,0.063,191.51,191.48,42.7613317]
[1739370088273,0.063,191.51,191.47,42.7613317]
[1739370088880,0.063,191.51,191.45,42.7913317]
[1739370089283,0.063,191.51,191.46,42.7613317]
[1739370090422,0.063,191.51,191.45,0.03]
[1739370090702,0.12549,191.49,191.45,0.03]
[1739370090879,13.53733853,191.49,191.45,0.03]
[1739370091615,0.12549,191.49,191.45,0.03]
[1739370091905,13.53733853,191.49,191.45,0.03]
[1739370092206,20.0,191.46,191.45,0.03]
[1739370092386,13.53733853,191.49,191.45,0.03]
[1739370092585,0.063,191.51,191.45,0.03]
[1739370092805,0.063,191.51,191.45,42.7913317]
[1739370093014,0.063,191.51,191.47,42.7613317]
[1739370093208,0.063,191.51,191.46,42.7613317]
[1739370094605,0.063,191.51,191.47,42.7613317]
[1739370094806,0.063,191.51,191.5,42.7613317]
[1739370096036,0.063,191.51,191.45,48.0143317]
[1739370096205,0.063,191.51,191.45,0.03]
[1739370097121,0.12549,191.48,191.45,0.03]
[1739370097537,20.12549,191.46,191.45,0.03]
[1739370097726,0.063,191.51,191.45,0.03]
[1739370098022,20.0,191.5,191.45,0.03]
[1739370098227,20.12549,191.49,191.45,0.03]
[1739370098745,0.12549,191.47,191.45,0.03]
[1739370098908,33.53733853,191.46,191.45,0.03]
[1739370099232,0.12549,191.45,191.34,42.7613317]
[1739370099434,0.12549,191.45,191.31,42.7613317]
[1739370099435,20.0,191.38,191.31,42.7613317]
[1739370099804,0.12549,191.45,191.31,42.7613317]
[1739370100117,0.12549,191.45,191.32,42.7613317]
[1739370100118,13.53733853,191.42,191.32,42.7613317]
[1739370100335,0.12549,191.38,191.3,42.7613317]
[1739370100537,20.0,191.39,191.32,42.7613317]
[1739370100717,1.5759,191.49,191.34,42.7613317]
[1739370100915,1.5759,191.49,191.37,42.7613317]
[1739370101125,13.78831853,191.48,191.35,42.7613317]
[1739370101308,13.53733853,191.44,191.35,42.7613317]
[1739370101806,13.53733853,191.44,191.33,20.0]
[1739370102030,13.53733853,191.44,191.33,62.7613317]
[1739370102429,13.53733853,191.44,191.32,42.7613317]
[1739370102819,0.12549,191.43,191.32,42.7613317]
[1739370103021,0.12549,191.43,191.31,42.7613317]
[1739370103222,13.53733853,191.44,191.33,42.7613317]
[1739370103427,13.53733853,191.44,191.32,42.7613317]
[1739370103729,0.12549,191.4,191.31,42.7613317]
[1739370103925,0.12549,191.43,191.3,48.1141217]
[1739370104110,0.12549,191.43,191.31,42.7613317]
[1739370104111,0.12549,191.41,191.31,42.7613317]
[1739370104428,20.0,191.39,191.31,42.7613317]
[1739370104927,0.12549,191.44,191.32,42.7613317]
[1739370105124,0.12549,191.44,191.33,42.7613317]
[1739370105504,13.53733853,191.43,191.33,42.7613317]
[1739370105708,13.53733853,191.43,191.3,68.1141217]
[1739370105909,0.12549,191.42,191.3,62.7613317]
[1739370106248,13.53733853,191.39,191.3,62.7613317]
[1739370106542,13.53733853,191.39,191.3,20.0]
[1739370106902,13.53733853,191.39,191.29,42.7613317]
[1739370107115,13.53733853,191.39,191.31,42.7613317]
[1739370107531,6.1062,191.48,191.35,42.7613317]
[1739370107716,20.0,191.45,191.36,42.7613317]
[1739370107909,6.1062,191.48,191.38,42.7613317]
[1739370108329,13.53733853,191.47,191.38,42.7613317]
[1739370108713,20.0,191.44,191.38,42.7613317]
[1739370108917,13.53733853,191.47,191.37,42.7913317]
[1739370109212,20.0,191.44,191.37,42.7913317]
[1739370109540,20.0,191.44,191.38,42.7613317]
[1739370109916,20.0,191.44,191.37,42.7913317]
[1739370110119,0.12549,191.43,191.37,0.03]
[1739370110540,13.53733853,191.43,191.37,0.03]
[1739370110830,0.12549,191.39,191.37,0.03]
[1739370111033,0.12549,191.35,191.27,0.03]
[1739370111232,20.0,191.3,191.27,0.03]
[1739370111417,0.12549,191.33,191.27,0.03]
[1739370111933,20.0,191.36,191.27,0.03]
[1739370112234,13.53733853,191.31,191.27,0.03]
[1739370112435,20.12549,191.28,191.27,0.03]
[1739370112628,33.53733853,191.28,191.27,0.0001]
[1739370113030,33.53733853,191.28,191.25,0.0001]
[1739370113031,19.82112853,191.27,191.25,0.0001]
[1739370113425,0.12549,191.26,191.25,0.0001]
[1739370113642,20.0,191.24,191.16,0.03]
[1739370114146,0.12549,191.19,191.16,0.03]
[1739370114339,20.0,191.2,191.16,0.03]
[1739370114837,20.0,191.24,191.16,0.03]
[1739370115037,20.0,191.24,191.16,42.7913317]
[1739370115224,0.12549,191.23,191.16,0.03]
[1739370115421,20.0,191.22,191.16,0.03]
[1739370116327,0.12549,191.21,191.16,0.03]
[1739370116525,0.8524,191.26,191.16,0.03]
[1739370116722,6.1583,191.27,191.17,42.7613317]
[1739370116948,6.1583,191.27,191.18,42.7613317]
[1739370117238,0.12549,191.26,191.19,42.7613317]
[1739370117620,0.12549,191.26,191.2,42.7613317]
[1739370117821,0.12549,191.26,191.19,42.7613317]
[1739370118239,0.11695168,191.32,191.16,0.03]
[1739370118240,6.4379,191.32,191.23,42.7613317]
[1739370118417,0.12549,191.31,191.23,42.7613317]
[1739370118622,20.0,191.29,191.22,42.7613317]
[1739370118828,0.12549,191.31,191.21,42.7613317]
[1739370119022,6.4379,191.32,191.24,42.7613317]
[1739370119234,6.4379,191.32,191.25,42.7613317]
[1739370119432,6.4379,191.32,191.23,42.7613317]
[1739370119620,0.12549,191.31,191.25,42.7613317]
[1739370119938,0.12549,191.31,191.23,42.7613317]
[1739370120130,13.53733853,191.31,191.21,42.7613317]
[1739370120328,13.53733853,191.31,191.25,0.03]
[1739370120527,6.5716,191.44,191.3,42.7613317]
[1739370120723,6.5716,191.44,191.35,42.7613317]
[1739370121341,20.0,191.41,191.35,42.7613317]
[1739370121544,0.12549,191.4,191.31,42.7613317]
[1739370121720,13.53733853,191.4,191.3,42.7613317]
[1739370121921,13.53733853,191.4,191.29,42.7613317]
[1739370122121,13.53733853,191.4,191.27,5.2282]
[1739370122122,0.12549,191.41,191.27,42.7613317]
[1739370122533,0.12549,191.38,191.3,42.7613317]
[1739370122843,6.5716,191.44,191.36,42.7613317]
[1739370123028,6.5716,191.44,191.34,42.7613317]
[1739370123029,0.12549,191.43,191.34,42.7613317]
[1739370123222,13.53733853,191.43,191.32,42.7613317]
[1739370123428,13.53733853,191.39,191.29,42.7613317]
[1739370123920,0.12549,191.39,191.25,42.7913317]
[1739370124127,0.12549,191.39,191.25,0.03]
[1739370124128,0.12549,191.35,191.25,0.03]
[1739370124337,0.12549,191.31,191.25,0.03]
[1739370124944,13.78831853,191.32,191.25,0.03]
[1739370125325,20.12549,191.26,191.25,0.03]
[1739370125645,33.53733853,191.26,191.25,0.03]
[1739370125860,0.12549,191.21,191.16,0.03]
[1739370129345,20.12549,191.12,191.11,0.03]
[1739370130348,1.0,191.18,191.01,42.7613317]
[1739370130552,20.0,191.14,191.02,42.7613317]
[1739370130762,2.0,191.19,191.02,42.7613317]
[1739370130938,1.0,191.19,191.03,42.7613317]
[1739370131140,1.0,191.19,190.97,5.51738]
[1739370131141,0.8523,191.2,191.05,42.7613317]
[1739370131337,1.12549,191.19,191.04,42.7613317]
[1739370131541,0.12549,191.13,191.02,42.7613317]
[1739370131731,0.12549,191.13,191.03,42.7613317]
[1739370132054,20.0,191.14,191.01,0.25098]
[1739370132267,20.0,191.14,191.05,42.7613317]
[1739370132557,20.0,191.14,191.06,42.7613317]
[1739370132943,0.12549,191.13,191.06,42.7613317]
[1739370133839,13.53733853,191.13,191.02,0.03]
[1739370134241,0.12549,191.09,191.02,0.03]
[1739370134435,13.53733853,191.09,191.02,0.03]
[1739370135352,13.53733853,191.05,191.02,0.03]
[1739370135560,0.12549,191.04,190.97,0.03]
[1739370135936,20.0,191.08,190.97,0.03]
[1739370136152,20.0,191.08,191.01,42.7613317]
[1739370136473,13.78831853,191.13,191.01,42.7613317]
[1739370136691,6.0504,191.17,191.05,42.7613317]
[1739370136844,6.0504,191.17,191.06,42.7613317]
[1739370137042,6.0504,191.17,191.04,42.7613317]
[1739370137043,0.12549,191.12,191.04,42.7613317]
[1739370137349,20.0,191.13,191.04,42.7613317]
[1739370137550,0.12549,191.14,191.03,42.7613317]
[1739370137761,20.0,191.13,191.02,42.7613317]
[1739370138178,20.0,191.13,191.03,42.7613317]
[1739370138475,6.0504,191.17,191.08,42.7613317]
[1739370138879,0.12549,191.15,191.08,42.7613317]
[1739370139063,0.12549,191.15,191.07,42.7613317]
[1739370139263,0.12549,191.18,191.06,42.7613317]
[1739370139876,13.11712343,191.21,191.11,42.7613317]
[1739370140257,0.12549,191.2,191.1,42.7613317]
[1739370140566,13.41184853,191.2,191.08,42.7613317]
[1739370140770,13.11712343,191.21,191.14,42.7613317]
[1739370141074,13.11712343,191.21,191.16,42.7613317]
[1739370141253,13.11712343,191.21,191.19,42.7613317]
[1739370141463,13.11712343,191.21,191.2,42.7613317]
[1739370142172,13.85131853,191.33,191.19,42.7613317]
[1739370142379,20.0,191.3,191.2,42.7613317]
[1739370142876,0.12549,191.29,191.2,42.7613317]
[1739370143070,0.12549,191.29,191.19,42.7613317]
[1739370143274,0.12549,191.29,191.12,1.0]
[1739370143275,0.12549,191.29,191.16,42.7613317]
[1739370143456,13.53733853,191.25,191.13,42.7613317]
[1739370143660,13.53733853,191.25,191.14,42.7613317]
[1739370143864,13.53733853,191.25,191.15,42.7613317]
[1739370144078,1.0,191.31,191.12,5.2323]
[1739370144079,8.6306,191.34,191.19,42.7613317]
[1739370144374,20.0,191.31,191.21,42.7613317]
[1739370144577,13.53733853,191.3,191.21,42.7613317]
[1739370144773,13.53733853,191.3,191.2,42.7613317]
[1739370144973,0.25098,191.28,191.15,42.7613317]
[1739370145276,0.12549,191.21,191.13,42.7613317]
[1739370145455,20.0,191.31,191.17,42.7613317]
[1739370145662,20.0,191.31,191.16,42.7613317]
[1739370145876,0.12549,191.3,191.17,42.7613317]
[1739370146184,0.063,191.21,191.15,20.0]
[1739370146370,0.063,191.21,191.19,42.7613317]
[1739370146678,0.063,191.21,191.2,42.7613317]
[1739370146984,0.063,191.21,191.19,42.7613317]
[1739370147282,0.063,191.21,191.14,42.7613317]
[1739370147575,0.063,191.21,191.13,42.7613317]
[1739370147779,0.063,191.21,191.1,1.6654]
[1739370147980,0.063,191.21,191.17,42.7613317]
[1739370148279,0.063,191.21,191.16,42.7613317]
[1739370148470,0.063,191.21,191.14,42.7613317]
[1739370148681,0.063,191.21,191.15,42.7613317]
[1739370149767,0.063,191.21,191.2,42.7613317]
[1739370151087,0.063,191.21,191.2,90.7527634]
[1739370151291,0.063,191.21,191.2,47.9914317]
[1739370151608,0.063,191.21,191.2,98.3919434]
[1739370151765,0.063,191.33,191.29,42.7613317]
[1739370152087,0.063,191.33,191.28,42.7613317]
[1739370152468,0.063,191.33,191.3,42.7613317]
[1739370152779,0.063,191.33,191.29,42.7613317]
[1739370152978,0.18849,191.33,191.23,42.7613317]
[1739370153400,0.063,191.33,191.24,42.7613317]
[1739370153696,0.063,191.33,191.25,42.7613317]
[1739370153863,0.063,191.33,191.28,42.7613317]
[1739370154063,0.063,191.33,191.29,42.7613317]
[1739370154265,0.063,191.33,191.25,42.7613317]
[1739370154464,0.18849,191.33,191.22,42.7613317]
[1739370155198,0.063,191.33,191.24,42.7613317]
[1739370155793,0.063,191.33,191.26,42.7613317]
[1739370156203,0.063,191.33,191.27,42.7613317]
[1739370156506,0.063,191.33,191.26,42.7613317]
[1739370156661,0.063,191.33,191.25,42.7613317]
[1739370156858,0.063,191.33,191.26,42.7613317]
[1739370157079,0.063,191.33,191.24,42.7613317]
[1739370157291,0.12549,191.29,191.2,42.7613317]
[1739370157504,6.46609,191.29,191.18,42.7613317]
[1739370157670,6.46609,191.29,191.2,42.7613317]
[1739370157867,0.12549,191.27,191.2,42.7613317]
[1739370158067,0.25098,191.27,191.16,42.7613317]
[1739370158267,0.12549,191.24,191.15,42.7613317]
[1739370158869,0.12549,191.24,191.17,42.7613317]
[1739370159102,7.9692,191.29,191.21,42.7613317]
[1739370159305,0.12549,191.28,191.2,42.7613317]
[1739370160379,0.12549,191.28,191.21,42.7613317]
[1739370161089,0.12549,191.28,191.2,42.7613317]
[1739370161292,0.12549,191.28,191.21,42.7613317]
[1739370161875,0.12549,191.28,191.2,42.7613317]
[1739370162480,13.53733853,191.28,191.18,42.7613317]
[1739370162678,13.53733853,191.28,191.17,42.7613317]
[1739370162874,13.53733853,191.28,191.18,42.7613317]
[1739370163086,13.53733853,191.28,191.19,42.7613317]
[1739370163603,13.53733853,191.28,191.19,26.30187025]
[1739370164275,13.53733853,191.28,191.18,26.30187025]
[1739370164597,0.12549,191.19,191.1,26.30187025]
[1739370164801,0.12549,191.19,191.08,26.30187025]
[1739370165309,0.12549,191.22,191.1,26.30187025]
[1739370165470,0.12549,191.2,191.05,11.5293]
[1739370165793,0.12549,191.2,191.08,26.30187025]
[1739370166304,0.12549,191.18,191.05,5.2341]
[1739370166510,0.12549,191.18,191.08,26.30187025]
[1739370166807,0.12549,191.18,191.09,26.30187025]
[1739370167708,0.12549,191.18,191.09,42.78346556]
[1739370168089,0.12549,191.18,191.11,42.78346556]
[1739370168285,0.12549,191.18,191.12,42.78346556]
[1739370168481,0.12549,191.18,191.1,42.78346556]
[1739370168687,0.12549,191.18,191.08,42.78346556]
[1739370169242,0.12549,191.18,191.07,48.01706556]
[1739370169918,0.12549,191.18,191.09,42.78346556]
[1739370170412,0.12549,191.18,191.1,42.78346556]
[1739370170588,0.12549,191.18,191.09,42.78346556]
[1739370170785,0.12549,191.18,191.09,0.03]
[1739370171020,6.2627,191.19,191.11,42.78346556]
[1739370171192,6.6226,191.26,191.17,42.78346556]
[1739370171522,0.12549,191.25,191.17,42.78346556]
[1739370171819,0.12549,191.25,191.13,20.0]
[1739370171820,0.12549,191.25,191.18,42.78346556]
[1739370171998,0.12549,191.25,191.19,42.78346556]
[1739370172506,0.12549,191.25,191.18,42.78346556]
[1739370173187,1.6286,191.29,191.21,42.78346556]
[1739370173425,6.0051,191.31,191.17,5.2308]
[1739370173426,6.0051,191.31,191.23,42.78346556]
[1739370173593,6.0051,191.31,191.24,42.78346556]
[1739370173796,0.12549,191.3,191.24,42.78346556]
[1739370173997,0.12549,191.3,191.23,42.78346556]
[1739370174295,0.12549,191.3,191.17,5.2308]
[1739370174511,0.12549,191.31,191.2,42.78346556]
[1739370174886,0.12549,191.31,191.19,42.78346556]
[1739370175087,0.25098,191.29,191.17,42.78346556]
[1739370175301,0.25098,191.26,191.15,42.78346556]
[1739370175523,0.25098,191.26,191.14,42.78346556]
[1739370175708,0.25098,191.26,191.13,48.01546556]
[1739370176100,0.12549,191.24,191.12,42.78346556]
[1739370176405,0.25098,191.2,191.09,0.03]
[1739370176593,0.12549,191.19,191.09,0.03]
[1739370176782,0.12549,191.18,191.09,0.03]
[1739370176987,20.0,191.14,191.09,0.03]
[1739370177188,13.78831853,191.16,191.09,0.03]
[1739370178991,0.25098,191.16,191.09,0.03]
[1739370179411,13.78831853,191.16,191.09,0.03]
[1739370179616,0.25098,191.16,191.09,0.03]
[1739370180198,0.12549,191.16,191.09,0.03]
[1739370181408,0.37647,191.16,191.09,0.03]
[1739370181811,0.12549,191.13,191.09,0.03]
[1739370183214,6.3597,191.17,191.09,0.03]
[1739370183421,6.3597,191.17,191.09,42.81346556]
[1739370183800,0.12549,191.16,191.09,42.81346556]
[1739370184322,0.25098,191.16,191.09,0.03]
[1739370184496,13.78831853,191.16,191.09,0.03]
[1739370184701,0.25098,191.14,191.09,0.03]
[1739370184901,0.12549,191.14,191.09,0.03]
[1739370185100,6.3597,191.17,191.09,0.03]
[1739370185402,0.25098,191.16,191.09,0.03]
[1739370185599,0.12549,191.16,191.09,0.03]
[1739370186012,0.12549,191.16,191.09,42.81346556]
[1739370186205,13.53733853,191.2,191.09,42.81346556]
[1739370186404,0.25098,191.19,191.09,42.81346556]
[1739370186619,20.12549,191.19,191.09,42.81346556]
[1739370187021,20.12549,191.19,191.09,0.03]
[1739370187219,0.18849,191.21,191.09,42.81346556]
[1739370187604,0.25098,191.2,191.09,26.35636882]
[1739370187812,0.12549,191.18,191.09,0.03]
[1739370188015,0.37647,191.18,191.09,0.03]
[1739370188300,0.063,191.21,191.09,26.35636882]
[1739370188630,0.18849,191.21,191.11,26.32636882]
[1739370189042,0.18849,191.21,191.1,26.32636882]
[1739370189242,0.18849,191.21,191.09,0.03]
[1739370189243,0.12549,191.16,191.09,0.03]
[1739370189919,0.12549,191.15,191.09,0.03]
[1739370190112,0.12549,191.14,191.09,0.03]
[1739370191006,20.12549,191.15,191.09,0.03]
[1739370191417,0.12549,191.14,191.09,0.03]
[1739370193330,20.12549,191.15,191.09,0.03]
[1739370193722,14.31656811,191.22,191.09,0.03]
[1739370193917,9.22074623,191.22,191.09,0.03]
[1739370194230,7.8893,191.22,191.12,26.32636882]
[1739370194649,0.18849,191.21,191.12,26.32636882]
[1739370195325,0.18849,191.21,191.1,5.2327]
[1739370195527,0.25098,191.2,191.09,26.35636882]
[1739370196038,0.063,191.21,191.1,26.32636882]
[1739370196344,0.31398,191.21,191.1,26.32636882]
[1739370197243,0.31398,191.21,191.09,26.35636882]
[1739370197617,0.31398,191.21,191.1,26.32636882]
[1739370197965,0.31398,191.21,191.11,26.32636882]
[1739370198413,0.31398,191.21,191.09,26.35636882]
[1739370199047,0.31398,191.21,191.1,26.32636882]
[1739370201452,0.31398,191.21,191.11,26.32636882]
[1739370201614,0.18849,191.21,191.11,26.32636882]
[1739370201818,0.18849,191.21,191.12,26.32636882]
[1739370202314,0.18849,191.21,191.15,26.32636882]
[1739370202519,0.18849,191.21,191.11,26.32636882]
[1739370202932,0.18849,191.21,191.12,26.32636882]
[1739370203133,0.18849,191.21,191.1,31.55916882]
[1739370203439,0.18849,191.21,191.11,26.32636882]
[1739370203832,0.18849,191.21,191.12,26.32636882]
[1739370204219,0.18849,191.21,191.11,26.32636882]